[Event "Titled Tuesday Blitz January 03 Early 2023"]
[White "Fernandez Garcia, Gumersindo"]
[Black "Zierk, Steven"]
[WhiteFideId "24516740"]
[BlackFideId "2034255"]
[WhiteElo "2160"]
[BlackElo "2488"]
[Result "1-0"]
[Round "01"]
[TimeControl "180+2"]
[Date "2023.01.03"]
[WhiteClock "0:00:20"]
[BlackClock "0:00:43"]

1. g3 {[%clk 0:02:56]}  d5 {[%clk 0:02:55]} 2. Bg2 {[%clk 0:02:56]}  Nf6 {[%clk 0:02:56]} 3. a3 {[%clk 0:02:56]}  e5 {[%clk 0:02:56]} 4. d3 {[%clk 0:02:56]}  c6 {[%clk 0:02:53]} 5. e3 {[%clk 0:02:54]}  Bd6 {[%clk 0:02:52]} 6. Ne2 {[%clk 0:02:54]}  h5 {[%clk 0:02:51]} 7. h3 {[%clk 0:02:52]}  Be6 {[%clk 0:02:50]} 8. Nd2 {[%clk 0:02:51]}  Nbd7 {[%clk 0:02:43]} 9. c4 {[%clk 0:02:36]}  dxc4 {[%clk 0:02:38]} 10. Nxc4 {[%clk 0:02:25]}  Bc7 {[%clk 0:02:37]} 11. b3 {[%clk 0:02:24]}  Nd5 {[%clk 0:02:28]} 12. Bb2 {[%clk 0:02:22]}  Qg5 {[%clk 0:02:26]} 13. h4 {[%clk 0:02:15]}  Qg6 {[%clk 0:02:23]} 14. Qc2 {[%clk 0:01:42]}  f6 {[%clk 0:02:15]} 15. e4 {[%clk 0:01:35]}  Ne7 {[%clk 0:02:12]} 16. Rd1 {[%clk 0:01:29]}  c5 {[%clk 0:02:11]} 17. Nc3 {[%clk 0:01:23]}  O-O {[%clk 0:02:05]} 18. Ne3 {[%clk 0:01:23]}  Nc6 {[%clk 0:02:02]} 19. Ncd5 {[%clk 0:01:22]}  Bd6 {[%clk 0:02:01]} 20. Nc4 {[%clk 0:01:14]}  Bb8 {[%clk 0:01:58]} 21. O-O {[%clk 0:01:13]}  b5 {[%clk 0:01:47]} 22. Nce3 {[%clk 0:01:11]}  Nd4 {[%clk 0:01:46]} 23. Bxd4 {[%clk 0:01:11]}  exd4 {[%clk 0:01:45]} 24. Ne7+ {[%clk 0:01:11]}  Kf7 {[%clk 0:01:45]} 25. Nxg6 {[%clk 0:01:12]}  Kxg6 {[%clk 0:01:46]} 26. Nd5 {[%clk 0:01:11]}  Bd6 {[%clk 0:01:45]} 27. Nf4+ {[%clk 0:01:11]}  Bxf4 {[%clk 0:01:44]} 28. gxf4 {[%clk 0:01:12]}  Kh7 {[%clk 0:01:44]} 29. Qe2 {[%clk 0:01:11]}  Bf7 {[%clk 0:01:43]} 30. Bf3 {[%clk 0:01:11]}  Bxb3 {[%clk 0:01:42]} 31. Rb1 {[%clk 0:01:08]}  c4 {[%clk 0:01:42]} 32. Bxh5 {[%clk 0:01:07]}  Nc5 {[%clk 0:01:42]} 33. Qg4 {[%clk 0:01:03]}  Rh8 {[%clk 0:01:40]} 34. Qg6+ {[%clk 0:01:03]}  Kg8 {[%clk 0:01:40]} 35. Qf7+ {[%clk 0:01:02]}  Kh7 {[%clk 0:01:40]} 36. Kh2 {[%clk 0:00:55]}  Raf8 {[%clk 0:01:38]} 37. Qg6+ {[%clk 0:00:53]}  Kg8 {[%clk 0:01:37]} 38. Rg1 {[%clk 0:00:53]}  Rh7 {[%clk 0:01:36]} 39. e5 {[%clk 0:00:48]}  fxe5 {[%clk 0:01:33]} 40. f5 {[%clk 0:00:47]}  Nxd3 {[%clk 0:01:24]} 41. Qe6+ {[%clk 0:00:30]}  Kh8 {[%clk 0:01:24]} 42. Bg6 {[%clk 0:00:29]}  Rh6 {[%clk 0:01:20]} 43. h5 {[%clk 0:00:29]}  Nf4 {[%clk 0:01:11]} 44. Qe7 {[%clk 0:00:29]}  Rg8 {[%clk 0:01:11]} 45. f6 {[%clk 0:00:28]}  Nxh5 {[%clk 0:01:00]} 46. Bxh5 {[%clk 0:00:21]}  Rxh5+ {[%clk 0:01:01]} 47. Kg3 {[%clk 0:00:20]}  gxf6+ {[%clk 0:00:57]} 48. Kf3 {[%clk 0:00:21]}  Rf5+ {[%clk 0:00:50]} 49. Ke2 {[%clk 0:00:21]}  Rgg5 {[%clk 0:00:46]} 50. Rh1+ {[%clk 0:00:21]}  Kg8 {[%clk 0:00:45]} 51. Qe8+ {[%clk 0:00:20]}  Kg7 {[%clk 0:00:44]} 52. Qh8+ {[%clk 0:00:21]}  Kf7 {[%clk 0:00:44]} 53. Rh7+ {[%clk 0:00:21]}  Ke6 {[%clk 0:00:45]} 54. Qe8+ {[%clk 0:00:21]}  Kd5 {[%clk 0:00:45]} 55. Rd7+ {[%clk 0:00:21]}  Ke4 {[%clk 0:00:42]} 56. Qa8+ {[%clk 0:00:21]}  Kf4 {[%clk 0:00:43]} 57. Qf3# {[%clk 0:00:20]} 1-0


[Site "https://www.chess.com"]

[Event "Titled Tuesday Blitz January 03 Early 2023"]
[White "Xu, Yi"]
[Black "Baches Garcia, Guillermo"]
[WhiteFideId "8605564"]
[BlackFideId "2209764"]
[WhiteElo "2527"]
[BlackElo "2327"]
[Result "1-0"]
[Round "01"]
[TimeControl "180+2"]
[Date "2023.01.03"]
[WhiteClock "0:00:04"]
[BlackClock "0:00:02"]

1. e4 {[%clk 0:02:50]}  c5 {[%clk 0:02:59]} 2. Nf3 {[%clk 0:02:50]}  d6 {[%clk 0:03:00]} 3. d4 {[%clk 0:02:50]}  cxd4 {[%clk 0:03:01]} 4. Nxd4 {[%clk 0:02:51]}  Nf6 {[%clk 0:03:01]} 5. Nc3 {[%clk 0:02:51]}  Nc6 {[%clk 0:03:02]} 6. Bg5 {[%clk 0:02:51]}  e6 {[%clk 0:03:02]} 7. Qd2 {[%clk 0:02:51]}  h6 {[%clk 0:03:03]} 8. Nxc6 {[%clk 0:02:45]}  bxc6 {[%clk 0:03:02]} 9. Bf4 {[%clk 0:02:44]}  e5 {[%clk 0:03:01]} 10. Bg3 {[%clk 0:02:32]}  Be7 {[%clk 0:03:01]} 11. Bc4 {[%clk 0:02:30]}  Nh5 {[%clk 0:02:59]} 12. Qe2 {[%clk 0:02:28]}  Nxg3 {[%clk 0:02:53]} 13. hxg3 {[%clk 0:02:29]}  O-O {[%clk 0:02:53]} 14. O-O-O {[%clk 0:02:29]}  Be6 {[%clk 0:02:41]} 15. Bb3 {[%clk 0:02:26]}  Qc8 {[%clk 0:02:31]} 16. Kb1 {[%clk 0:02:26]}  a5 {[%clk 0:02:24]} 17. Bxe6 {[%clk 0:02:15]}  Qxe6 {[%clk 0:02:19]} 18. f4 {[%clk 0:02:08]}  Rfe8 {[%clk 0:02:05]} 19. f5 {[%clk 0:02:03]}  Qc8 {[%clk 0:01:54]} 20. Qg4 {[%clk 0:01:59]}  Kf8 {[%clk 0:01:40]} 21. Rd3 {[%clk 0:01:56]}  Rd8 {[%clk 0:01:34]} 22. Rhd1 {[%clk 0:01:54]}  Qc7 {[%clk 0:01:31]} 23. Na4 {[%clk 0:01:49]}  Rab8 {[%clk 0:01:28]} 24. a3 {[%clk 0:01:43]}  Qb7 {[%clk 0:01:11]} 25. c4 {[%clk 0:01:37]}  Qa6 {[%clk 0:01:00]} 26. Rc3 {[%clk 0:01:37]}  Rb7 {[%clk 0:00:51]} 27. Qf3 {[%clk 0:01:33]}  Rdb8 {[%clk 0:00:47]} 28. Ka1 {[%clk 0:01:27]}  c5 {[%clk 0:00:39]} 29. Ka2 {[%clk 0:01:16]}  Qc6 {[%clk 0:00:30]} 30. b3 {[%clk 0:01:13]}  Bg5 {[%clk 0:00:19]} 31. Qd3 {[%clk 0:01:08]}  Ke7 {[%clk 0:00:19]} 32. Qd5 {[%clk 0:01:04]}  Qc7 {[%clk 0:00:06]} 33. Rcd3 {[%clk 0:00:57]}  Rb6 {[%clk 0:00:05]} 34. Rb1 {[%clk 0:00:56]}  R8b7 {[%clk 0:00:05]} 35. Nc3 {[%clk 0:00:56]}  Qb8 {[%clk 0:00:05]} 36. Nb5 {[%clk 0:00:56]}  Rxb5 {[%clk 0:00:05]} 37. cxb5 {[%clk 0:00:56]}  Rxb5 {[%clk 0:00:05]} 38. Qc4 {[%clk 0:00:48]}  a4 {[%clk 0:00:05]} 39. Qxa4 {[%clk 0:00:46]}  Qb7 {[%clk 0:00:05]} 40. Rd5 {[%clk 0:00:44]}  Rb6 {[%clk 0:00:05]} 41. Qc4 {[%clk 0:00:38]}  Be3 {[%clk 0:00:05]} 42. f6+ {[%clk 0:00:34]}  gxf6 {[%clk 0:00:04]} 43. b4 {[%clk 0:00:27]}  Bd4 {[%clk 0:00:05]} 44. b5 {[%clk 0:00:26]}  Qa8 {[%clk 0:00:04]} 45. a4 {[%clk 0:00:13]}  Qa5 {[%clk 0:00:04]} 46. Qc2 {[%clk 0:00:14]}  Rb8 {[%clk 0:00:03]} 47. Rb3 {[%clk 0:00:13]}  Ra8 {[%clk 0:00:02]} 48. Ra3 {[%clk 0:00:12]}  Qb4 {[%clk 0:00:03]} 49. Rxd4 {[%clk 0:00:08]}  exd4 {[%clk 0:00:02]} 50. Qb3 {[%clk 0:00:06]}  Qd2+ {[%clk 0:00:02]} 51. Qb2 {[%clk 0:00:06]}  Qe1 {[%clk 0:00:02]} 52. b6 {[%clk 0:00:05]}  Qxe4 {[%clk 0:00:02]} 53. a5 {[%clk 0:00:05]}  Qd5+ {[%clk 0:00:02]} 54. Ka1 {[%clk 0:00:04]}  c4 {[%clk 0:00:02]} 55. b7 {[%clk 0:00:04]} 1-0


[Site "https://www.chess.com"]

[Event "Titled Tuesday Blitz January 03 Early 2023"]
[White "Ibadov, Dashgyn"]
[Black "Yeletsky, Ivan"]
[WhiteFideId "24107514"]
[BlackFideId "24180327"]
[WhiteElo "2391"]
[BlackElo "2494"]
[Result "0-1"]
[Round "01"]
[TimeControl "180+2"]
[Date "2023.01.03"]
[WhiteClock "0:00:01"]
[BlackClock "0:00:03"]

1. e4 {[%clk 0:02:59]}  c6 {[%clk 0:02:58]} 2. d4 {[%clk 0:02:58]}  d5 {[%clk 0:02:58]} 3. e5 {[%clk 0:02:58]}  Bf5 {[%clk 0:02:58]} 4. Nf3 {[%clk 0:02:59]}  e6 {[%clk 0:02:58]} 5. Be2 {[%clk 0:02:59]}  c5 {[%clk 0:02:58]} 6. Be3 {[%clk 0:02:57]}  Qb6 {[%clk 0:02:58]} 7. O-O {[%clk 0:02:49]}  Nc6 {[%clk 0:02:56]} 8. Nc3 {[%clk 0:02:46]}  Qxb2 {[%clk 0:02:26]} 9. Qe1 {[%clk 0:02:46]}  cxd4 {[%clk 0:02:25]} 10. Bxd4 {[%clk 0:02:45]}  Nxd4 {[%clk 0:02:02]} 11. Nxd4 {[%clk 0:02:46]}  Bb4 {[%clk 0:02:03]} 12. Ndb5 {[%clk 0:02:47]}  Ne7 {[%clk 0:01:43]} 13. Rb1 {[%clk 0:02:32]}  Bxc3 {[%clk 0:01:40]} 14. Rxb2 {[%clk 0:01:50]}  Bxe1 {[%clk 0:01:40]} 15. Nc7+ {[%clk 0:01:46]}  Kd7 {[%clk 0:01:32]} 16. Nxa8 {[%clk 0:01:46]}  Kc6 {[%clk 0:01:13]} 17. Bb5+ {[%clk 0:01:40]}  Kc5 {[%clk 0:01:14]} 18. Rxe1 {[%clk 0:01:20]}  Rxa8 {[%clk 0:01:13]} 19. Bd3 {[%clk 0:01:02]}  b6 {[%clk 0:01:12]} 20. f4 {[%clk 0:00:56]}  h5 {[%clk 0:01:12]} 21. Kf2 {[%clk 0:00:55]}  Rc8 {[%clk 0:01:04]} 22. Ke3 {[%clk 0:00:55]}  g6 {[%clk 0:00:53]} 23. a4 {[%clk 0:00:52]}  Kc6 {[%clk 0:00:31]} 24. a5 {[%clk 0:00:49]}  Rb8 {[%clk 0:00:29]} 25. axb6 {[%clk 0:00:45]}  axb6 {[%clk 0:00:27]} 26. Ra1 {[%clk 0:00:44]}  Kc7 {[%clk 0:00:20]} 27. Ra7+ {[%clk 0:00:42]}  Rb7 {[%clk 0:00:20]} 28. Rba2 {[%clk 0:00:30]}  Bxd3 {[%clk 0:00:17]} 29. Kxd3 {[%clk 0:00:28]}  Nc6 {[%clk 0:00:17]} 30. Rxb7+ {[%clk 0:00:25]}  Kxb7 {[%clk 0:00:17]} 31. c3 {[%clk 0:00:20]}  Na5 {[%clk 0:00:11]} 32. g3 {[%clk 0:00:19]}  Nb3 {[%clk 0:00:11]} 33. Rb2 {[%clk 0:00:13]}  Nc5+ {[%clk 0:00:12]} 34. Kd4 {[%clk 0:00:13]}  Kc6 {[%clk 0:00:13]} 35. h3 {[%clk 0:00:12]}  Na4 {[%clk 0:00:04]} 36. Ra2 {[%clk 0:00:11]}  b5 {[%clk 0:00:04]} 37. g4 {[%clk 0:00:11]}  h4 {[%clk 0:00:04]} 38. f5 {[%clk 0:00:10]}  g5 {[%clk 0:00:03]} 39. Rf2 {[%clk 0:00:09]}  Nc5 {[%clk 0:00:03]} 40. fxe6 {[%clk 0:00:08]}  Nxe6+ {[%clk 0:00:04]} 41. Ke3 {[%clk 0:00:07]}  Nf4 {[%clk 0:00:05]} 42. Kd4 {[%clk 0:00:01]}  Ne6+ {[%clk 0:00:04]} 43. Ke3 {[%clk 0:00:01]}  Nf4 {[%clk 0:00:04]} 44. Rf1 {[%clk 0:00:02]}  Kc5 {[%clk 0:00:04]} 45. Ra1 {[%clk 0:00:01]}  Nxh3 {[%clk 0:00:04]} 46. Ra7 {[%clk 0:00:02]}  Nf4 {[%clk 0:00:03]} 47. Rxf7 {[%clk 0:00:02]}  h3 {[%clk 0:00:02]} 48. Rh7 {[%clk 0:00:01]}  Kc4 {[%clk 0:00:03]} 0-1


[Site "https://www.chess.com"]

[Event "Titled Tuesday Blitz January 03 Early 2023"]
[White "Demchenko, Anton"]
[Black "Zhuravlev, Alexey"]
[WhiteFideId "4160258"]
[BlackFideId "4164199"]
[WhiteElo "2623"]
[BlackElo "2359"]
[Result "1-0"]
[Round "01"]
[TimeControl "180+2"]
[Date "2023.01.03"]
[WhiteClock "0:00:08"]
[BlackClock "0:00:05"]

1. e4 {[%clk 0:02:55]}  c6 {[%clk 0:02:59]} 2. d4 {[%clk 0:02:55]}  d5 {[%clk 0:03:00]} 3. e5 {[%clk 0:02:56]}  Bf5 {[%clk 0:03:00]} 4. Nd2 {[%clk 0:02:51]}  e6 {[%clk 0:02:58]} 5. Nb3 {[%clk 0:02:51]}  Nd7 {[%clk 0:02:48]} 6. Nf3 {[%clk 0:02:50]}  h6 {[%clk 0:02:47]} 7. c3 {[%clk 0:02:48]}  Ne7 {[%clk 0:02:46]} 8. Be2 {[%clk 0:02:46]}  g5 {[%clk 0:02:46]} 9. h4 {[%clk 0:02:43]}  g4 {[%clk 0:02:42]} 10. Nh2 {[%clk 0:02:44]}  h5 {[%clk 0:02:41]} 11. Nf1 {[%clk 0:02:35]}  Bg7 {[%clk 0:02:21]} 12. Ng3 {[%clk 0:02:31]}  Bg6 {[%clk 0:02:22]} 13. Bg5 {[%clk 0:02:30]}  f6 {[%clk 0:02:21]} 14. exf6 {[%clk 0:02:30]}  Nxf6 {[%clk 0:02:20]} 15. Nc5 {[%clk 0:02:25]}  Qc8 {[%clk 0:02:12]} 16. Qd2 {[%clk 0:02:19]}  Nf5 {[%clk 0:01:51]} 17. Bd3 {[%clk 0:02:02]}  Kf7 {[%clk 0:01:50]} 18. Bxf5 {[%clk 0:01:55]}  exf5 {[%clk 0:01:50]} 19. O-O {[%clk 0:01:54]}  Ne4 {[%clk 0:01:50]} 20. Ncxe4 {[%clk 0:01:25]}  fxe4 {[%clk 0:01:50]} 21. f4 {[%clk 0:01:23]}  Bf5 {[%clk 0:01:44]} 22. Rf2 {[%clk 0:01:11]}  Kg6 {[%clk 0:01:43]} 23. Nf1 {[%clk 0:01:11]}  Qe6 {[%clk 0:01:30]} 24. g3 {[%clk 0:01:09]}  Rac8 {[%clk 0:01:27]} 25. Ne3 {[%clk 0:01:09]}  Rc7 {[%clk 0:01:21]} 26. a4 {[%clk 0:01:07]}  Rd7 {[%clk 0:01:14]} 27. Kh2 {[%clk 0:01:08]}  Rc8 {[%clk 0:01:14]} 28. a5 {[%clk 0:01:03]}  c5 {[%clk 0:01:04]} 29. dxc5 {[%clk 0:00:39]}  d4 {[%clk 0:01:04]} 30. cxd4 {[%clk 0:00:39]}  Bxd4 {[%clk 0:00:59]} 31. Re2 {[%clk 0:00:28]}  Bxc5 {[%clk 0:00:47]} 32. Qe1 {[%clk 0:00:28]}  Rd3 {[%clk 0:00:42]} 33. Nxf5 {[%clk 0:00:23]}  Kxf5 {[%clk 0:00:43]} 34. Rc1 {[%clk 0:00:21]}  b6 {[%clk 0:00:27]} 35. b4 {[%clk 0:00:15]}  Bd4 {[%clk 0:00:07]} 36. Rxc8 {[%clk 0:00:11]}  Qxc8 {[%clk 0:00:08]} 37. Rxe4 {[%clk 0:00:10]}  Qc2+ {[%clk 0:00:07]} 38. Re2 {[%clk 0:00:11]}  Qc3 {[%clk 0:00:05]} 39. Qb1 {[%clk 0:00:08]} 1-0


[Site "https://www.chess.com"]

[Event "Titled Tuesday Blitz January 03 Early 2023"]
[White "Indjic, Aleksandar"]
[Black "Golubova, Anna"]
[WhiteFideId "911925"]
[BlackFideId "24173606"]
[WhiteElo "2618"]
[BlackElo "2156"]
[Result "1/2-1/2"]
[Round "01"]
[TimeControl "180+2"]
[Date "2023.01.03"]
[WhiteClock "0:00:32"]
[BlackClock "0:00:24"]

1. e4 {[%clk 0:02:59]}  g6 {[%clk 0:03:00]} 2. d4 {[%clk 0:02:58]}  Bg7 {[%clk 0:03:00]} 3. c4 {[%clk 0:02:58]}  d6 {[%clk 0:03:01]} 4. Nc3 {[%clk 0:02:58]}  Nc6 {[%clk 0:03:00]} 5. Nge2 {[%clk 0:02:57]}  e5 {[%clk 0:02:58]} 6. Be3 {[%clk 0:02:57]}  f5 {[%clk 0:02:56]} 7. exf5 {[%clk 0:02:54]}  gxf5 {[%clk 0:02:51]} 8. f4 {[%clk 0:02:47]}  Nge7 {[%clk 0:02:37]} 9. dxe5 {[%clk 0:02:39]}  dxe5 {[%clk 0:02:36]} 10. Qxd8+ {[%clk 0:02:39]}  Nxd8 {[%clk 0:02:35]} 11. fxe5 {[%clk 0:02:39]}  Bxe5 {[%clk 0:02:36]} 12. Bf4 {[%clk 0:02:38]}  Nf7 {[%clk 0:02:33]} 13. O-O-O {[%clk 0:02:36]}  c6 {[%clk 0:02:30]} 14. Re1 {[%clk 0:02:32]}  O-O {[%clk 0:02:26]} 15. Bxe5 {[%clk 0:02:30]}  Nxe5 {[%clk 0:02:26]} 16. Nf4 {[%clk 0:02:26]}  N7g6 {[%clk 0:02:22]} 17. Nxg6 {[%clk 0:02:25]}  Nxg6 {[%clk 0:02:23]} 18. Bd3 {[%clk 0:02:24]}  f4 {[%clk 0:02:21]} 19. Bxg6 {[%clk 0:02:14]}  hxg6 {[%clk 0:02:20]} 20. Rhf1 {[%clk 0:02:14]}  Bg4 {[%clk 0:02:08]} 21. Re4 {[%clk 0:02:05]}  g5 {[%clk 0:01:57]} 22. h4 {[%clk 0:02:00]}  Bf5 {[%clk 0:01:51]} 23. Re5 {[%clk 0:02:00]}  Kg7 {[%clk 0:01:41]} 24. hxg5 {[%clk 0:01:59]}  Bd3 {[%clk 0:01:40]} 25. Re7+ {[%clk 0:01:57]}  Kg6 {[%clk 0:01:39]} 26. Rf3 {[%clk 0:01:57]}  Bxc4 {[%clk 0:01:39]} 27. Rxb7 {[%clk 0:01:57]}  Kxg5 {[%clk 0:01:38]} 28. Rb4 {[%clk 0:01:54]}  Be6 {[%clk 0:01:35]} 29. Ne4+ {[%clk 0:01:52]}  Kg4 {[%clk 0:01:32]} 30. Nf2+ {[%clk 0:01:47]}  Kg5 {[%clk 0:01:32]} 31. a3 {[%clk 0:01:39]}  Rad8 {[%clk 0:01:30]} 32. g3 {[%clk 0:01:32]}  fxg3 {[%clk 0:01:21]} 33. Rxg3+ {[%clk 0:01:33]}  Kf5 {[%clk 0:01:22]} 34. Ne4 {[%clk 0:01:31]}  Bd5 {[%clk 0:01:17]} 35. Nc3 {[%clk 0:01:24]}  Rg8 {[%clk 0:01:12]} 36. Rxg8 {[%clk 0:01:22]}  Rxg8 {[%clk 0:01:12]} 37. Kd2 {[%clk 0:01:16]}  Rg2+ {[%clk 0:01:11]} 38. Ke3 {[%clk 0:01:16]}  Rg3+ {[%clk 0:01:10]} 39. Kd4 {[%clk 0:01:15]}  Ke6 {[%clk 0:01:06]} 40. Kc5 {[%clk 0:01:15]}  Rg2 {[%clk 0:01:04]} 41. Rb7 {[%clk 0:01:10]}  Rc2 {[%clk 0:01:00]} 42. a4 {[%clk 0:01:09]}  a5 {[%clk 0:00:52]} 43. Rb6 {[%clk 0:01:00]}  Ke5 {[%clk 0:00:50]} 44. Rb8 {[%clk 0:00:56]}  Ke6 {[%clk 0:00:49]} 45. Re8+ {[%clk 0:00:56]}  Kd7 {[%clk 0:00:49]} 46. Re2 {[%clk 0:00:56]}  Rxe2 {[%clk 0:00:45]} 47. Nxe2 {[%clk 0:00:57]}  Bb3 {[%clk 0:00:46]} 48. Nc3 {[%clk 0:00:48]}  Kc7 {[%clk 0:00:45]} 49. Nb5+ {[%clk 0:00:38]}  Kb7 {[%clk 0:00:37]} 50. Nd6+ {[%clk 0:00:30]}  Kc7 {[%clk 0:00:35]} 51. Nc4 {[%clk 0:00:30]}  Bxa4 {[%clk 0:00:33]} 52. Nxa5 {[%clk 0:00:30]}  Bb5 {[%clk 0:00:33]} 53. Nb3 {[%clk 0:00:30]}  Ba4 {[%clk 0:00:33]} 54. Nd4 {[%clk 0:00:30]}  Kb7 {[%clk 0:00:30]} 55. b4 {[%clk 0:00:30]}  Kc7 {[%clk 0:00:26]} 56. Nf5 {[%clk 0:00:30]}  Bd1 {[%clk 0:00:24]} 57. Ne3 {[%clk 0:00:29]}  Bf3 {[%clk 0:00:24]} 58. Nc2 {[%clk 0:00:30]}  Bg2 {[%clk 0:00:24]} 59. Nd4 {[%clk 0:00:31]}  Bh1 {[%clk 0:00:24]} 60. b5 {[%clk 0:00:31]}  cxb5 {[%clk 0:00:24]} 61. Nxb5+ {[%clk 0:00:32]} 1/2-1/2


[Site "https://www.chess.com"]

[Event "Titled Tuesday Blitz January 03 Early 2023"]
[White "Namitbir Singh Walia"]
[Black "Sethuraman, S.P."]
[WhiteFideId "35071068"]
[BlackFideId "5021596"]
[WhiteElo "2364"]
[BlackElo "2626"]
[Result "0-1"]
[Round "01"]
[TimeControl "180+2"]
[Date "2023.01.03"]
[WhiteClock "0:00:31"]
[BlackClock "0:01:26"]

1. e4 {[%clk 0:02:55]}  c5 {[%clk 0:02:59]} 2. Nf3 {[%clk 0:02:55]}  d6 {[%clk 0:02:59]} 3. d4 {[%clk 0:02:56]}  cxd4 {[%clk 0:03:00]} 4. Nxd4 {[%clk 0:02:56]}  Nf6 {[%clk 0:03:01]} 5. f3 {[%clk 0:02:52]}  Nc6 {[%clk 0:02:58]} 6. c4 {[%clk 0:02:51]}  Qb6 {[%clk 0:02:57]} 7. Nb3 {[%clk 0:02:45]}  a5 {[%clk 0:02:52]} 8. Qe2 {[%clk 0:01:58]}  a4 {[%clk 0:02:48]} 9. Be3 {[%clk 0:01:58]}  Qc7 {[%clk 0:02:30]} 10. N3d2 {[%clk 0:01:57]}  g6 {[%clk 0:02:24]} 11. Nc3 {[%clk 0:01:55]}  Bg7 {[%clk 0:02:24]} 12. Qf2 {[%clk 0:01:52]}  O-O {[%clk 0:02:21]} 13. Be2 {[%clk 0:01:45]}  a3 {[%clk 0:02:21]} 14. b3 {[%clk 0:01:44]}  Ng4 {[%clk 0:02:18]} 15. fxg4 {[%clk 0:01:43]}  Bxc3 {[%clk 0:02:18]} 16. Rc1 {[%clk 0:01:42]}  Bb2 {[%clk 0:02:18]} 17. Rd1 {[%clk 0:01:39]}  Nb4 {[%clk 0:02:17]} 18. O-O {[%clk 0:01:35]}  Nxa2 {[%clk 0:02:15]} 19. Qh4 {[%clk 0:01:21]}  Nc3 {[%clk 0:02:11]} 20. Rde1 {[%clk 0:01:22]}  Nxe2+ {[%clk 0:02:07]} 21. Rxe2 {[%clk 0:01:23]}  a2 {[%clk 0:02:07]} 22. Nf3 {[%clk 0:01:15]}  Bf6 {[%clk 0:01:54]} 23. Bg5 {[%clk 0:00:35]}  a1=Q {[%clk 0:01:47]} 24. Rxa1 {[%clk 0:00:36]}  Rxa1+ {[%clk 0:01:46]} 25. Kf2 {[%clk 0:00:36]}  Qc5+ {[%clk 0:01:31]} 26. Kg3 {[%clk 0:00:34]}  Be5+ {[%clk 0:01:30]} 27. Kh3 {[%clk 0:00:31]}  h5 {[%clk 0:01:26]} 0-1


[Site "https://www.chess.com"]

[Event "Titled Tuesday Blitz January 03 Early 2023"]
[White "Harsha Bharathakoti"]
[Black "Mogirzan, Matei-Valeriu"]
[WhiteFideId "5078776"]
[BlackFideId "1257455"]
[WhiteElo "2602"]
[BlackElo "1813"]
[Result "1-0"]
[Round "01"]
[TimeControl "180+2"]
[Date "2023.01.03"]
[WhiteClock "0:01:09"]
[BlackClock "0:00:03"]

1. b3 {[%clk 0:02:55]}  Nf6 {[%clk 0:02:56]} 2. Bb2 {[%clk 0:02:54]}  e6 {[%clk 0:02:57]} 3. e3 {[%clk 0:02:55]}  d5 {[%clk 0:02:56]} 4. f4 {[%clk 0:02:54]}  c5 {[%clk 0:02:53]} 5. Nf3 {[%clk 0:02:54]}  Nc6 {[%clk 0:02:53]} 6. Bb5 {[%clk 0:02:55]}  Bd6 {[%clk 0:02:48]} 7. Bxc6+ {[%clk 0:02:54]}  bxc6 {[%clk 0:02:49]} 8. d3 {[%clk 0:02:52]}  Rb8 {[%clk 0:02:35]} 9. Nbd2 {[%clk 0:02:52]}  O-O {[%clk 0:02:33]} 10. O-O {[%clk 0:02:52]}  Ng4 {[%clk 0:02:25]} 11. Qe2 {[%clk 0:02:47]}  f5 {[%clk 0:02:24]} 12. h3 {[%clk 0:02:44]}  Nf6 {[%clk 0:02:24]} 13. Ne5 {[%clk 0:02:42]}  Bd7 {[%clk 0:02:17]} 14. a4 {[%clk 0:02:36]}  Be8 {[%clk 0:02:11]} 15. Qf2 {[%clk 0:02:26]}  Be7 {[%clk 0:01:56]} 16. Kh1 {[%clk 0:02:23]}  Nh5 {[%clk 0:01:52]} 17. Ndf3 {[%clk 0:02:20]}  Nf6 {[%clk 0:01:16]} 18. Rg1 {[%clk 0:02:10]}  c4 {[%clk 0:01:06]} 19. dxc4 {[%clk 0:02:02]}  Ne4 {[%clk 0:01:07]} 20. Qe1 {[%clk 0:02:01]}  Bf6 {[%clk 0:00:58]} 21. Kh2 {[%clk 0:01:51]}  c5 {[%clk 0:00:52]} 22. Rd1 {[%clk 0:01:48]}  Qc7 {[%clk 0:00:45]} 23. cxd5 {[%clk 0:01:47]}  exd5 {[%clk 0:00:46]} 24. Rxd5 {[%clk 0:01:47]}  c4 {[%clk 0:00:35]} 25. Ba3 {[%clk 0:01:29]}  cxb3 {[%clk 0:00:24]} 26. cxb3 {[%clk 0:01:18]}  Bf7 {[%clk 0:00:15]} 27. Rd7 {[%clk 0:01:16]}  Qc2 {[%clk 0:00:05]} 28. Bxf8 {[%clk 0:01:16]}  Rxf8 {[%clk 0:00:04]} 29. Nd4 {[%clk 0:01:13]}  Qb2 {[%clk 0:00:03]} 30. Rxf7 {[%clk 0:01:10]}  Rxf7 {[%clk 0:00:04]} 31. Nxf7 {[%clk 0:01:11]}  Kxf7 {[%clk 0:00:04]} 32. Nxf5 {[%clk 0:01:09]}  Nd2 {[%clk 0:00:04]} 33. Qd1 {[%clk 0:01:09]}  Nf3+ {[%clk 0:00:03]} 34. Qxf3 {[%clk 0:01:09]} 1-0


[Site "https://www.chess.com"]

[Event "Titled Tuesday Blitz January 03 Early 2023"]
[White "Gunina, Valentina"]
[Black "Mikhalsky, Vladimir"]
[WhiteFideId "4167570"]
[BlackFideId "14144352"]
[WhiteElo "2469"]
[BlackElo "2219"]
[Result "1-0"]
[Round "01"]
[TimeControl "180+2"]
[Date "2023.01.03"]
[WhiteClock "0:00:53"]
[BlackClock "0:00:21"]

1. c4 {[%clk 0:03:00]}  c5 {[%clk 0:02:55]} 2. Nf3 {[%clk 0:02:59]}  Nf6 {[%clk 0:02:55]} 3. Nc3 {[%clk 0:02:59]}  d5 {[%clk 0:02:55]} 4. cxd5 {[%clk 0:02:58]}  Nxd5 {[%clk 0:02:55]} 5. e4 {[%clk 0:02:59]}  Nxc3 {[%clk 0:02:49]} 6. bxc3 {[%clk 0:02:56]}  g6 {[%clk 0:02:48]} 7. Bc4 {[%clk 0:02:55]}  Bg7 {[%clk 0:02:48]} 8. O-O {[%clk 0:02:52]}  O-O {[%clk 0:02:42]} 9. Re1 {[%clk 0:02:38]}  Nc6 {[%clk 0:02:41]} 10. h3 {[%clk 0:02:38]}  Qd6 {[%clk 0:02:22]} 11. a4 {[%clk 0:02:32]}  Na5 {[%clk 0:02:17]} 12. Bf1 {[%clk 0:02:27]}  Be6 {[%clk 0:02:06]} 13. Ba3 {[%clk 0:02:27]}  Qc7 {[%clk 0:01:55]} 14. d4 {[%clk 0:02:17]}  Rfd8 {[%clk 0:01:41]} 15. d5 {[%clk 0:01:40]}  Bxc3 {[%clk 0:01:39]} 16. Rc1 {[%clk 0:01:40]}  Bxe1 {[%clk 0:01:35]} 17. Qxe1 {[%clk 0:01:41]}  Bd7 {[%clk 0:01:20]} 18. Rxc5 {[%clk 0:01:40]}  Qb6 {[%clk 0:01:19]} 19. Rxa5 {[%clk 0:01:36]}  Rdc8 {[%clk 0:01:12]} 20. Bxe7 {[%clk 0:01:35]}  Rc2 {[%clk 0:01:07]} 21. d6 {[%clk 0:01:21]}  Rxf2 {[%clk 0:00:52]} 22. Qxf2 {[%clk 0:01:16]}  Qxa5 {[%clk 0:00:52]} 23. Bc4 {[%clk 0:01:15]}  Qxa4 {[%clk 0:00:29]} 24. Bxf7+ {[%clk 0:01:10]}  Kg7 {[%clk 0:00:29]} 25. Bd5 {[%clk 0:00:53]}  Bc6 {[%clk 0:00:22]} 26. Qb2+ {[%clk 0:00:52]}  Kh6 {[%clk 0:00:21]} 27. Bg5+ {[%clk 0:00:53]} 1-0


[Site "https://www.chess.com"]